fUST/lending_fUST_20251201
["ID","MTS","AMOUNT","RATE_DAILY","PERIOD"]
[395214149,1764547847719,-500.0,0.00013972,2]
[395214150,1764547847729,-587.57,0.00013972,2]
[395214152,1764547847738,-652.74,0.00013972,2]
[395214154,1764547847748,-845.98,0.00013972,2]
[395214156,1764547847758,-500.0,0.00013972,2]
[395214158,1764547847768,-500.0,0.00013972,2]
[395214160,1764547847779,-500.0,0.00013972,2]
[395214162,1764547847789,-500.0,0.00013972,2]
[395214164,1764547847799,-500.0,0.00013972,2]
[395214166,1764547847811,-656.44,0.00013972,2]
[395214168,1764547847821,-558.01,0.00013972,2]
[395214170,1764547847831,-500.0,0.00013972,2]
[395214172,1764547847840,-500.0,0.00013972,2]
[395214174,1764547847850,-500.0,0.00013972,2]
[395214176,1764547847859,-807.47,0.00013972,2]
[395214178,1764547847868,-500.0,0.00013972,2]
[395214179,1764547847877,-634.56771903,0.00013972,2]
[395214181,1764547847887,-544.86,0.00013972,2]
[395214183,1764547847896,-500.0,0.00013972,2]
[395214185,1764547847908,-500.0,0.00013972,2]
[395214187,1764547847918,-500.0,0.00013972,2]
[395214189,1764547847927,-500.0,0.00013972,2]
[395214191,1764547847944,-500.0,0.00013972,2]
[395214193,1764547847953,-500.0,0.00013972,2]
[395214195,1764547847964,-500.0,0.00013972,2]
[395214197,1764547847974,-529.95,0.00013972,2]
[395214199,1764547847983,-500.0,0.00013972,2]
[395214201,1764547847992,-2030.27,0.00013972,2]
[395214203,1764547848001,-500.0,0.00013972,2]
[395214205,1764547848013,-500.0,0.00013972,2]
[395214207,1764547848022,-675.07,0.00013972,2]
[395214209,1764547848031,-500.0,0.00013972,2]
[395214210,1764547848041,-289.64867407,0.00013972,2]
[395214212,1764547848051,-500.0,0.00013972,2]
[395214214,1764547848061,-1034.83,0.00013972,2]
[395214216,1764547848071,-500.0,0.00013972,2]
[395214218,1764547848081,-500.0,0.00013972,2]
[395214220,1764547848091,-679.79,0.00013972,2]
[395214222,1764547848101,-505.34230446,0.00013972,2]
[395214224,1764547848112,-948.53,0.00013972,2]
[395214226,1764547848121,-500.0,0.00013972,2]
[395214228,1764547848130,-2364.55,0.00013972,2]
[395214230,1764547848143,-809.24,0.00013972,2]
[395214233,1764547848153,-500.0,0.00013972,2]
[395214234,1764547848163,-500.0,0.00013972,2]
[395214236,1764547848172,-500.0,0.00013972,2]
[395214238,1764547848185,-772.8,0.00013972,2]
[395214240,1764547848194,-500.0,0.00013972,2]
[395214242,1764547848204,-500.0,0.00013972,2]
[395214244,1764547848215,-500.0,0.00013972,2]
[395214246,1764547848224,-500.0,0.00013972,2]
[395214248,1764547848233,-490.15081309,0.00013972,2]
[395214250,1764547848243,-743.42,0.00013972,2]
[395214252,1764547848253,-500.0,0.00013972,2]
[395214254,1764547848262,-500.0,0.00013972,2]
[395214256,1764547848271,-500.0,0.00013972,2]
[395214258,1764547848281,-428.4600899,0.00013972,2]
[395214260,1764547848290,-1229.64,0.00013972,2]
[395214262,1764547848299,-500.0,0.00013972,2]
[395214264,1764547848309,-500.0,0.00013972,2]
[395214266,1764547848319,-500.0,0.00013972,2]
[395214268,1764547848328,-1653.8,0.00013972,2]
[395214270,1764547848338,-500.0,0.00013972,2]
[395214272,1764547848348,-500.0,0.00013972,2]
[395214274,1764547848358,-952.37,0.00013972,2]
[395214276,1764547848367,-500.0,0.00013972,2]
[395214278,1764547848378,-500.0,0.00013972,2]
[395214280,1764547848388,-1065.54,0.00013972,2]
[395214282,1764547848399,-500.0,0.00013972,2]
[395214284,1764547848408,-201.89244279,0.00013972,2]
[395214285,1764547848419,-616.27534751,0.00013972,2]
[395214287,1764547848429,-500.0,0.00013972,2]
[395214289,1764547848442,-500.0,0.00013972,2]
[395214291,1764547848452,-500.0,0.00013972,2]
[395214293,1764547848461,-500.0,0.00013972,2]
[395214295,1764547848471,-1163.63,0.00013972,2]
[395214297,1764547848480,-644.17308166,0.00013972,2]
[395214299,1764547848489,-500.0,0.00013972,2]
[395214301,1764547848499,-500.0,0.00013972,2]
[395214303,1764547848508,-774.67,0.00013972,2]
[395214305,1764547848517,-500.0,0.00013972,2]
[395214307,1764547848526,-500.0,0.00013972,2]
[395214309,1764547848535,-500.0,0.00013972,2]
[395214311,1764547848544,-500.0,0.00013972,2]
[395214313,1764547848553,-2289.13,0.00013972,2]
[395214315,1764547848563,-500.0,0.00013972,2]
[395214317,1764547848572,-690.1,0.00013972,2]
[395214319,1764547848582,-500.0,0.00013972,2]
[395214321,1764547848591,-500.0,0.00013972,2]
[395214323,1764547848600,-1102.2,0.00013972,2]
[395214325,1764547848610,-500.0,0.00013972,2]
[395214327,1764547848619,-500.0,0.00013972,2]
[395214328,1764547848629,-884.13,0.00013972,2]
[395214330,1764547848639,-700.77,0.00013972,2]
[395214332,1764547848648,-670.44,0.00013972,2]
[395214334,1764547848657,-461.15989254,0.00013972,2]
[395214336,1764547848666,-500.0,0.00013972,2]
[395214338,1764547848676,-500.0,0.00013972,2]
[395214340,1764547848689,-500.0,0.00013972,2]
[395214342,1764547848699,-623.73673937,0.00013972,2]
[395214344,1764547848708,-617.62,0.00013972,2]
[395214346,1764547848718,-500.0,0.00013972,2]
[395214348,1764547848727,-500.0,0.00013972,2]
[395214350,1764547848737,-500.0,0.00013972,2]
[395214351,1764547848746,-527.06,0.00013972,2]
[395214352,1764547848755,-3547.43,0.00013972,2]
[395214353,1764547848764,-831.61,0.00013972,2]
[395214354,1764547848773,-500.0,0.00013972,2]
[395214355,1764547848783,-500.0,0.00013972,2]
[395214356,1764547848792,-500.0,0.00013972,2]
[395214357,1764547848801,-788.9,0.00013972,2]
[395214358,1764547848810,-500.0,0.00013972,2]
[395214359,1764547848818,-500.0,0.00013972,2]
[395214360,1764547848827,-871.61,0.00013972,2]
[395214361,1764547848836,-500.0,0.00013972,2]
[395214362,1764547848845,-500.0,0.00013972,2]
[395214363,1764547848854,-500.0,0.00013972,2]
[395214364,1764547848863,-500.0,0.00013972,2]
[395214365,1764547848872,-500.0,0.00013972,2]
[395214367,1764547848881,-1956.35,0.00013972,2]
[395214369,1764547848891,-1591.01,0.00013972,2]
[395214371,1764547848900,-435.20781061,0.00013972,2]
[395214373,1764547848909,-500.0,0.00013972,2]
[395214375,1764547848918,-500.0,0.00013972,2]
[395214377,1764547848927,-546.72,0.00013972,2]
[395214379,1764547848942,-500.0,0.00013972,2]
[395214381,1764547848952,-955.74,0.00013972,2]
[395214383,1764547848961,-500.0,0.00013972,2]
[395214385,1764547848970,-500.0,0.00013972,2]
[395214387,1764547848980,-500.0,0.00013972,2]
[395214389,1764547848990,-846.35,0.00013972,2]
[395214391,1764547849000,-600.27035744,0.00013972,2]
[395214393,1764547849012,-500.0,0.00013972,2]
[395214396,1764547849024,-1126.27,0.00013972,2]
[395214398,1764547849033,-500.0,0.00013972,2]
[395214399,1764547849042,-500.0,0.00013972,2]
[395214401,1764547849051,-500.0,0.00013972,2]
[395214403,1764547849063,-500.0,0.00013972,2]
[395214405,1764547849072,-500.0,0.00013972,2]
[395214408,1764547849083,-500.0,0.00013972,2]
[395214410,1764547849092,-500.0,0.00013972,2]
[395214412,1764547849101,-500.0,0.00013972,2]
[395214414,1764547849111,-500.0,0.00013972,2]
[395214416,1764547849120,-930.88,0.00013972,2]
[395214418,1764547849131,-500.0,0.00013972,2]
[395214419,1764547849140,-500.0,0.00013972,2]
[395214421,1764547849149,-500.0,0.00013972,2]
[395214424,1764547849159,-500.0,0.00013972,2]
[395214425,1764547849168,-1330.81,0.00013972,2]
[395214427,1764547849178,-500.0,0.00013972,2]
[395214430,1764547849191,-1962.8,0.00013972,2]
[395214432,1764547849200,-500.0,0.00013972,2]
[395214434,1764547849209,-647.63,0.00013972,2]
[395214436,1764547849218,-500.0,0.00013972,2]
[395214437,1764547849228,-18901.83,0.00013972,2]
[395214440,1764547849237,-500.0,0.00013972,2]
[395214442,1764547849247,-538.19,0.00013972,2]
[395214443,1764547849256,-926.83,0.00013972,2]
[395214446,1764547849266,-1877.1,0.00013972,2]
[395214448,1764547849276,-500.0,0.00013972,2]
[395214449,1764547849285,-2465.66,0.00013972,2]
[395214451,1764547849295,-500.0,0.00013972,2]
[395214453,1764547849305,-500.0,0.00013972,2]
[395214455,1764547849316,-500.0,0.00013972,2]
[395214457,1764547849326,-500.0,0.00013972,2]
[395214460,1764547849338,-1103.14,0.00013972,2]
[395214461,1764547849348,-500.0,0.00013972,2]
[395214463,1764547849358,-500.0,0.00013972,2]
[395214465,1764547849367,-500.0,0.00013972,2]
[395214467,1764547849377,-500.0,0.00013972,2]
[395214469,1764547849387,-500.0,0.00013972,2]
[395214471,1764547849396,-500.0,0.00013972,2]
[395214473,1764547849405,-946.93,0.00013972,2]
[395214475,1764547849414,-500.0,0.00013972,2]
[395214476,1764547849423,-2099.32,0.00013972,2]
[395214477,1764547849435,-500.0,0.00013972,2]
[395214478,1764547849448,-500.0,0.00013972,2]
[395214479,1764547849457,-500.0,0.00013972,2]
[395214480,1764547849467,-1092.88,0.00013972,2]
[395214481,1764547849476,-1396.65,0.00013972,2]
[395214482,1764547849487,-500.0,0.00013972,2]
[395214483,1764547849496,-500.0,0.00013972,2]
[395214484,1764547849506,-500.0,0.00013972,2]
[395214485,1764547849516,-500.0,0.00013972,2]
[395214486,1764547849526,-500.0,0.00013972,2]
[395214487,1764547849536,-500.0,0.00013972,2]
[395214488,1764547849545,-727.4,0.00013972,2]
[395214489,1764547849555,-500.0,0.00013972,2]
[395214490,1764547849565,-500.0,0.00013972,2]
[395214491,1764547849574,-500.0,0.00013972,2]
[395214492,1764547849584,-500.0,0.00013972,2]
[395214493,1764547849593,-1723.58,0.00013972,2]
[395214494,1764547849603,-3444.94,0.00013972,2]
[395214495,1764547849612,-4746.48,0.00013972,2]
[395214496,1764547849622,-500.0,0.00013972,2]
[395214497,1764547849631,-7720.79,0.00013972,2]
[395214498,1764547849642,-500.0,0.00013972,2]
[395214499,1764547849651,-500.0,0.00013972,2]
[395214500,1764547849661,-156.85619322,0.00013972,2]
[395214501,1764547849671,-500.0,0.00013972,2]
[395214502,1764547849681,-500.0,0.00013972,2]
[395214503,1764547849695,-500.0,0.00013972,2]
[395214504,1764547849706,-500.0,0.00013972,2]
[395214505,1764547849716,-751.29,0.00013972,2]
[395214506,1764547849727,-500.0,0.00013972,2]
[395214507,1764547849738,-17065.91,0.00013972,2]
[395214508,1764547849749,-671.24,0.00013972,2]
[395214509,1764547849759,-500.0,0.00013972,2]
[395214510,1764547849768,-694.26,0.00013972,2]
[395214511,1764547849779,-1136.2,0.00013972,2]
[395214512,1764547849789,-500.0,0.00013972,2]
[395214513,1764547849799,-1743.96,0.00013972,2]
[395214514,1764547849809,-636.16,0.00013972,2]
[395214515,1764547849819,-1367.62,0.00013972,2]
[395214516,1764547849829,-611.96,0.00013972,2]
[395214517,1764547849838,-500.0,0.00013972,2]
[395214518,1764547849849,-1120.27,0.00013972,2]
[395214519,1764547849859,-500.0,0.00013972,2]
[395214520,1764547849868,-500.0,0.00013972,2]
[395214521,1764547849879,-500.0,0.00013972,2]
[395214522,1764547849889,-500.0,0.00013972,2]
[395214523,1764547849899,-500.0,0.00013972,2]
[395214524,1764547849909,-791.39,0.00013972,2]
[395214525,1764547849919,-500.0,0.00013972,2]
[395214526,1764547849929,-1726.06,0.00013972,2]
[395214527,1764547849943,-4332.05,0.00013972,2]
[395214528,1764547849954,-1547.89,0.00013972,2]
[395214529,1764547849964,-929.72,0.00013972,2]
[395214530,1764547849974,-500.0,0.00013972,2]
[395214531,1764547849984,-1617.93,0.00013972,2]
[395214532,1764547849994,-500.0,0.00013972,2]
[395214533,1764547850004,-500.0,0.00013972,2]
[395214534,1764547850024,-500.0,0.00013972,2]
[395214535,1764547850035,-926.66,0.00013972,2]
[395214536,1764547850045,-500.0,0.00013972,2]
[395214537,1764547850055,-3646.16,0.00013972,2]
[395214538,1764547850066,-1809.43,0.00013972,2]
[395214539,1764547850075,-2240.8,0.00013972,2]
[395214540,1764547850086,-500.0,0.00013972,2]
[395214541,1764547850096,-6168.37,0.00013972,2]
[395214542,1764547850106,-500.0,0.00013972,2]
[395214543,1764547850116,-500.0,0.00013972,2]
[395214544,1764547850126,-500.0,0.00013972,2]
[395214545,1764547850136,-1223.9,0.00013972,2]
[395214546,1764547850145,-624.33,0.00013972,2]
[395214547,1764547850155,-3000.95,0.00013972,2]
[395214548,1764547850166,-500.0,0.00013972,2]
[395214549,1764547850175,-1817.5,0.00013972,2]
[395214550,1764547850188,-500.0,0.00013972,2]
[395214551,1764547850197,-500.0,0.00013972,2]
[395214552,1764547850207,-871.05,0.00013972,2]
[395214553,1764547850216,-500.0,0.00013972,2]
[395214554,1764547850226,-2947.59,0.00013972,2]
[395214555,1764547850235,-1576.87,0.00013972,2]
[395214556,1764547850245,-500.0,0.00013972,2]
[395214557,1764547850254,-500.0,0.00013972,2]
[395214558,1764547850266,-500.0,0.00013972,2]
[395214559,1764547850275,-500.0,0.00013972,2]
[395214560,1764547850286,-1139.11,0.00013972,2]
[395214561,1764547850295,-500.0,0.00013972,2]
[395214562,1764547850304,-500.0,0.00013972,2]
[395214563,1764547850314,-500.0,0.00013972,2]
[395214564,1764547850324,-3342.48,0.00013972,2]
[395214565,1764547850335,-500.0,0.00013972,2]
[395214566,1764547850351,-801.41,0.00013972,2]
[395214567,1764547850362,-500.0,0.00013972,2]
[395214568,1764547850372,-1908.36,0.00013972,2]
[395214569,1764547850382,-288.11176597,0.00013972,2]
[395214570,1764547850392,-500.0,0.00013972,2]
[395214571,1764547850402,-500.0,0.00013972,2]
[395214572,1764547850412,-1153.9,0.00013972,2]
[395214573,1764547850422,-500.0,0.00013972,2]
[395214574,1764547850431,-500.0,0.00013972,2]
[395214575,1764547850446,-500.0,0.00013972,2]
[395214576,1764547850456,-582.81,0.00013972,2]
[395214577,1764547850465,-903.16,0.00013972,2]
[395214579,1764547850476,-1011.14,0.00013972,2]
[395214580,1764547850486,-500.0,0.00013972,2]
[395214581,1764547850497,-570.4,0.00013972,2]
[395214582,1764547850507,-1765.06,0.00013972,2]
[395214583,1764547850517,-2454.71,0.00013972,2]
[395214584,1764547850527,-500.0,0.00013972,2]
[395214585,1764547850538,-790.07,0.00013972,2]
[395214586,1764547850549,-500.0,0.00013972,2]
[395214587,1764547850558,-3314.57,0.00013972,2]
[395214588,1764547850568,-500.0,0.00013972,2]
[395214590,1764547850578,-1875.88,0.00013972,2]
[395214592,1764547850588,-2219.39,0.00013972,2]
[395214594,1764547850597,-2313.85,0.00013972,2]
[395214596,1764547850607,-500.0,0.00013972,2]
[395214598,1764547850616,-5221.19,0.00013972,2]
[395214600,1764547850626,-3048.03,0.00013972,2]
[395214602,1764547850636,-3145.78,0.00013972,2]
[395214603,1764547850646,-10397.32,0.00013972,2]
[395214605,1764547850657,-500.0,0.00013972,2]
[395214607,1764547850667,-500.0,0.00013972,2]
[395214609,1764547850676,-760.25,0.00013972,2]
[395214611,1764547850691,-500.0,0.00013972,2]
[395214613,1764547850701,-500.0,0.00013972,2]
[395214615,1764547850710,-500.0,0.00013972,2]
[395214617,1764547850720,-500.0,0.00013972,2]
[395214619,1764547850729,-2989.63,0.00013972,2]
[395214621,1764547850740,-837.63,0.00013972,2]
[395214623,1764547850750,-500.0,0.00013972,2]
[395214626,1764547850760,-984.98,0.00013972,2]
[395214628,1764547850770,-500.0,0.00013972,2]
[395214630,1764547850780,-1081.9,0.00013972,2]
[395214632,1764547850790,-5982.17,0.00013972,2]
[395214634,1764547850800,-500.0,0.00013972,2]
[395214636,1764547850810,-1807.97,0.00013972,2]
[395214638,1764547850820,-500.0,0.00013972,2]
[395214640,1764547850830,-8291.1,0.00013972,2]
[395214642,1764547850840,-500.0,0.00013972,2]
[395214644,1764547850850,-500.0,0.00013972,2]
[395214646,1764547850860,-3531.24,0.00013972,2]
[395214648,1764547850869,-1985.68,0.00013972,2]
[395214650,1764547850879,-617.60099242,0.00013972,2]
[395214651,1764547850889,-500.0,0.00013972,2]
[395214653,1764547850899,-5538.13,0.00013972,2]
[395214655,1764547850910,-500.0,0.00013972,2]
[395214657,1764547850920,-500.0,0.00013972,2]
[395214658,1764547850930,-500.0,0.00013972,2]
[395214659,1764547850943,-500.0,0.00013972,2]
[395214660,1764547850953,-500.0,0.00013972,2]
[395214661,1764547850963,-1615.27,0.00013972,2]
[395214662,1764547850973,-500.0,0.00013972,2]
[395214663,1764547850983,-500.0,0.00013972,2]
[395214664,1764547850993,-500.0,0.00013972,2]
[395214665,1764547851003,-1762.42,0.00013972,2]
[395214666,1764547851016,-500.0,0.00013972,2]
[395214667,1764547851026,-2706.0,0.00013972,2]
[395214668,1764547851036,-522.06,0.00013972,2]
[395214669,1764547851047,-1167.41,0.00013972,2]
[395214670,1764547851059,-2549.68,0.00013972,2]
[395214671,1764547851068,-893.99,0.00013972,2]
[395214672,1764547851080,-500.0,0.00013972,2]
[395214673,1764547851090,-500.0,0.00013972,2]
[395214674,1764547851100,-500.0,0.00013972,2]
[395214675,1764547851110,-500.0,0.00013972,2]
[395214676,1764547851120,-500.0,0.00013972,2]
[395214677,1764547851129,-500.0,0.00013972,2]
[395214678,1764547851140,-500.0,0.00013972,2]
[395214679,1764547851150,-500.0,0.00013972,2]
[395214680,1764547851160,-376.80665791,0.00013972,2]
[395214681,1764547851170,-739.84,0.00013972,2]
[395214682,1764547851180,-2706.58,0.00013972,2]
[395214683,1764547851193,-1888.96,0.00013972,2]
[395214684,1764547851203,-501.98,0.00013972,2]
[395214685,1764547851213,-765.97,0.00013972,2]
[395214686,1764547851223,-1636.34,0.00013972,2]
[395214687,1764547851232,-500.0,0.00013972,2]
[395214688,1764547851242,-931.35,0.00013972,2]
[395214689,1764547851252,-3871.71,0.00013972,2]
[395214690,1764547851262,-500.0,0.00013972,2]
[395214691,1764547851272,-2563.46,0.00013972,2]
[395214692,1764547851282,-666.7,0.00013972,2]
[395214693,1764547851292,-500.0,0.00013972,2]
[395214694,1764547851302,-2450.73,0.00013972,2]
[395214695,1764547851312,-500.0,0.00013973,2]
[395214696,1764547851322,-2000.0,0.00014,2]
[395214697,1764547851333,-326.03852145,0.00014111,2]
[395214698,1764547851342,-11425.54996109,0.00014146,2]
[395214699,1764547851352,-720.0,0.00014182,2]
[395214700,1764547851363,-600.0,0.00014221,2]
[395214701,1764547851374,-500.0,0.00014246,2]
[395214702,1764547851385,-555.23,0.00014246,2]
[395214703,1764547851395,-500.0,0.00014246,2]
[395214704,1764547851405,-715.49,0.00014246,2]
[395214705,1764547851415,-500.0,0.00014246,2]
[395214706,1764547851426,-503.23158847,0.00014246,2]
[395214707,1764547851443,-500.0,0.00014246,2]
[395214708,1764547851454,-1930.01,0.00014246,2]
[395214709,1764547851464,-550.14,0.00014246,2]
[395214710,1764547851475,-500.0,0.00014246,2]
[395214711,1764547851485,-500.0,0.00014246,2]
[395214712,1764547851495,-620.22,0.00014246,2]
[395214713,1764547851505,-1004.82,0.00014246,2]
[395214714,1764547851515,-500.0,0.00014246,2]
[395214715,1764547851524,-500.0,0.00014246,2]
[395214716,1764547851533,-500.0,0.00014246,2]
[395214717,1764547851544,-500.0,0.00014246,2]
[395214718,1764547851553,-553.97,0.00014246,2]
[395214719,1764547851563,-500.0,0.00014246,2]
[395214720,1764547851573,-163.78847503,0.00014246,2]
[395214721,1764547851583,-1164.46,0.00014246,2]
[395214722,1764547851593,-500.0,0.00014246,2]
[395214723,1764547851603,-500.0,0.00014246,2]
[395214724,1764547851614,-500.0,0.00014246,2]
[395214725,1764547851624,-500.0,0.00014246,2]
[395214726,1764547851635,-500.0,0.00014246,2]
[395214727,1764547851645,-551.76,0.00014246,2]
[395214728,1764547851655,-437.05432105,0.00014246,2]
[395214729,1764547851664,-500.0,0.00014246,2]
[395214730,1764547851675,-672.98,0.00014246,2]
[395214731,1764547851689,-500.0,0.00014246,2]
[395214732,1764547851698,-500.0,0.00014246,2]
[395214733,1764547851708,-500.0,0.00014246,2]
[395214735,1764547851718,-758.56,0.00014246,2]
[395214737,1764547851728,-500.0,0.00014246,2]
[395214739,1764547851738,-500.0,0.00014246,2]
[395214741,1764547851748,-500.0,0.00014246,2]
[395214743,1764547851758,-572.24,0.00014246,2]
[395214745,1764547851769,-371.77523424,0.00014246,2]
[395214747,1764547851779,-1551.99,0.00014246,2]
[395214749,1764547851789,-500.0,0.00014246,2]
[395214751,1764547851799,-500.0,0.00014246,2]
[395214753,1764547851809,-504.38905811,0.00014246,3]
[395214755,1764547851819,-593.28,0.00014246,2]
[395214757,1764547851829,-500.0,0.00014246,2]
[395214759,1764547851838,-478.9086057,0.00014246,2]
[395214761,1764547851848,-500.0,0.00014246,2]
[395214763,1764547851858,-500.0,0.00014246,2]
[395214765,1764547851867,-500.0,0.00014246,2]
[395214785,1764547852068,-500.0,0.00014246,2]
[395214787,1764547852080,-1501.36,0.00014246,2]
[395214789,1764547852090,-500.0,0.00014246,2]
[395214791,1764547852101,-500.0,0.00014246,2]
[395214793,1764547852111,-1043.26,0.00014246,2]
[395214795,1764547852120,-1167.96,0.00014246,2]
[395214797,1764547852129,-875.49,0.00014246,2]
[395214799,1764547852138,-500.0,0.00014246,2]
[395214800,1764547852147,-775.42,0.00014246,2]
[395214802,1764547852157,-500.0,0.00014246,2]
[395214804,1764547852166,-500.0,0.00014246,2]
[395214805,1764547852176,-775.78,0.00014246,2]
[395214806,1764547852187,-500.0,0.00014246,2]
[395214808,1764547852197,-628.32,0.00014246,2]
[395214809,1764547852207,-500.0,0.00014246,2]
[395214811,1764547852216,-500.0,0.00014246,2]
[395214813,1764547852225,-677.04,0.00014246,2]
[395214815,1764547852235,-500.0,0.00014246,2]
[395214816,1764547852244,-151.0,0.00014246,2]
[395214817,1764547852254,-151.0,0.00014246,2]
[395214819,1764547852263,-500.0,0.00014246,2]
[395214821,1764547852273,-151.0,0.00014246,2]
[395214823,1764547852283,-151.0,0.00014246,2]
[395214825,1764547852294,-500.0,0.00014246,2]
[395214827,1764547852304,-657.5,0.00014246,2]
[395214828,1764547852314,-500.0,0.00014246,2]
[395214829,1764547852324,-500.0,0.00014246,2]
[395214830,1764547852334,-874.25,0.00014246,2]
[395214831,1764547852343,-500.0,0.00014246,2]
[395214832,1764547852353,-536.05,0.00014246,2]
[395214833,1764547852362,-500.0,0.00014246,2]
[395214834,1764547852371,-500.0,0.00014246,2]
[395214835,1764547852382,-500.0,0.00014246,2]
[395214836,1764547852392,-544.42,0.00014246,2]
[395214837,1764547852401,-2398.0,0.00014246,2]
[395214838,1764547852411,-500.0,0.00014246,2]
[395214839,1764547852421,-500.0,0.00014246,2]
[395214840,1764547852431,-500.0,0.00014246,2]
[395214841,1764547852444,-500.0,0.00014246,2]
[395214842,1764547852453,-587.57,0.00014246,2]
[395214843,1764547852463,-652.74,0.00014246,2]
[395214844,1764547852472,-845.98,0.00014246,2]
[395214845,1764547852482,-500.0,0.00014246,2]
[395214846,1764547852493,-500.0,0.00014246,2]
[395214847,1764547852503,-500.0,0.00014246,2]
[395214848,1764547852514,-500.0,0.00014246,2]
[395214849,1764547852524,-500.0,0.00014246,2]
[395214850,1764547852533,-656.44,0.00014246,2]
[395214851,1764547852543,-558.01,0.00014246,2]
[395214852,1764547852553,-500.0,0.00014246,2]
[395214853,1764547852562,-500.0,0.00014246,2]
[395214854,1764547852571,-500.0,0.00014246,2]
[395214855,1764547852581,-807.47,0.00014246,2]
[395214856,1764547852590,-185.19409059,0.00014246,2]
[395214857,1764547852600,-544.86,0.00014246,2]
[395214858,1764547852610,-500.0,0.00014246,2]
[395214859,1764547852619,-500.0,0.00014246,2]
[395214860,1764547852629,-500.0,0.00014246,2]
[395214861,1764547852638,-500.0,0.00014246,2]
[395214862,1764547852647,-500.0,0.00014246,2]
[395214863,1764547852657,-420.04542538,0.00014246,2]
[395214864,1764547852666,-500.0,0.00014246,2]
[395214865,1764547852676,-529.95,0.00014246,2]
[395214866,1764547852688,-500.0,0.00014246,2]
[395214867,1764547852699,-2030.27,0.00014246,2]
[395214868,1764547852708,-500.0,0.00014246,2]
[395214869,1764547852718,-500.0,0.00014246,2]
[395214870,1764547852727,-675.07,0.00014246,2]
[395214871,1764547852736,-500.0,0.00014246,2]
[395214872,1764547852746,-500.0,0.00014246,2]
[395214873,1764547852756,-1034.83,0.00014246,2]
[395214874,1764547852765,-378.97720525,0.00014246,2]
[395214875,1764547852775,-500.0,0.00014246,2]
[395214876,1764547852785,-679.79,0.00014246,2]
[395214877,1764547852794,-948.53,0.00014246,2]
[395214878,1764547852804,-500.0,0.00014246,2]
[395214879,1764547852814,-2364.55,0.00014246,2]
[395214880,1764547852823,-809.24,0.00014246,2]
[395214881,1764547852833,-500.0,0.00014246,2]
[395214882,1764547852842,-500.0,0.00014246,2]
[395214883,1764547852851,-500.0,0.00014246,2]
[395214884,1764547852860,-772.8,0.00014246,2]
[395214885,1764547852870,-500.0,0.00014246,2]
[395214886,1764547852879,-500.0,0.00014246,2]
[395214887,1764547852889,-500.0,0.00014246,2]
[395214888,1764547852898,-500.0,0.00014246,2]
[395214889,1764547852908,-743.42,0.00014246,2]